[Event "Bangabandhu Premier Div League 2022"]
[Site "Dhaka"]
[Date "2022.11.30"]
[Round "1.7"]
[White "Nayan Kumar, Mohanto"]
[Black "Sankalan Shah"]
[Result "1-0"]
[ECO "E62"]
[WhiteElo "1976"]
[BlackElo "2218"]
[Annotator "TA"]
[PlyCount "121"]
[EventDate "2022.11.30"]
[EventType "team-tourn"]
[EventCountry "BAN"]
[SourceTitle "playchess.com"]
[Source "ChessBase"]
[SourceQuality "1"]
[TimeControl "40/5400+30:1800+30"]

{[%evp 20,121,25,20,33,24,24,0,9,0,0,0,0,0,0,-10,-9,-16,0,-20,-20,-33,-22,-33,-29,-38,-28,-43,-45,-39,-35,-37,-37,-57,-18,-21,-21,-27,0,0,0,0,0,0,0,0,21,15,18,22,99,100,236,272,396,383,587,583,612,610,609,595,595,594,578,572,531,514,804,669,1154,1081,1105,881,2459,4572,12838,12837,12837,12837,12837,12836,12839,12839,12840,12839,12839,11673,12841,12841,12842,12841,12841,12841,12843,12843,12845,12844,12845,12845,12845,12846,27999,27999]} 1. d4 {[%emt 0:00:35]} Nf6 {[%emt 0:00:14]} 2. Nf3 {[%emt 0:00:43]} g6 {[%emt 0:01:42]} 3. g3 {[%emt 0:00:45]} Bg7 {[%emt 0:01:15]} 4. Bg2 {[%emt 0:00:20]} O-O {[%emt 0:03:00]} 5. c4 {[%emt 0:04:30]} d6 {[%emt 0:00:22]} 6. O-O {[%emt 0:01:03]} Nc6 {[%emt 0:01:21]} 7. Nc3 {[%emt 0:00:32]} e5 {[%emt 0:03:00]} 8. dxe5 {[%emt 0:04:24]} Nxe5 {[%emt 0:00:47]} 9. Nxe5 {[%emt 0:00:29]} dxe5 {[%emt 0:00:05]} 10. Qxd8 {[%emt 0:00:53]} Rxd8 {[%emt 0:00:01]} 11. Bg5 {[%emt 0:01:01]} Rd7 {[%emt 0:44:21] E62: King's Indian: Fianchetto: 6...c6 and Panno Variation (6...Nc6) without ...a6.} 12. Rad1 {[%emt 0:21:44]} c6 {[%emt 0:04:36]} 13. h3 {[%emt 0:06:48]} h6 {[%emt 0:03:28] The position is equal.} 14. Be3 {[%emt 0:00:51]} Rxd1 {[%emt 0:01:31]} 15. Rxd1 {[%emt 0:00:38] [#] Rd8+ is the strong threat.} Be6 {[%emt 0:32:17]} 16. b3 {[%emt 0:00:35]} Bf8 {[%emt 0:00:00]} 17. Na4 {[%emt 0:04:35]} Nd7 {[%emt 0:00:00] Against Nc5} 18. Kh2 {[%emt 0:02:54] [#]} f5 $146 {[%emt 0:00:00]} ({Predecessor:} 18... Kg7 19. h4 f5 20. f3 Be7 21. Bh3 g5 22. Bf2 Kf7 23. hxg5 hxg5 24. Kg1 a5 {1-0 (36) Le,T (2512)-Vakhidov,D (2161) Chess.com INT 2018}) 19. h4 {[%emt 0:02:38]} Kf7 {[%emt 0:00:00]} 20. f3 {[%emt 0:05:52]} Kf6 {[%emt 0:00:00]} 21. Bf2 {[%emt 0:05:15]} g5 {[%emt 0:00:00]} 22. hxg5+ {[%emt 0:00:30]} hxg5 {[%emt 0:00:00]} 23. f4 {[%emt 0:06:33]} gxf4 {[%emt 0:00:00]} 24. gxf4 {[%emt 0:00:12]} e4 {[%emt 0:00:00]} 25. Bd4+ {[%emt 0:04:30]} Kf7 {[%emt 0:00:00]} 26. Bh3 {[%emt 0:02:23]} Bg7 {[%emt 0:00:31]} 27. Bxg7 {[%emt 0:13:48]} Kxg7 {[%emt 0:00:01]} 28. Nc3 {[%emt 0:02:29]} Nf6 {[%emt 0:02:19]} 29. e3 {[%emt 0:01:34]} Rh8 {[%emt 0:00:48] aiming for ...Ng4+.} 30. Kg2 {[%emt 0:00:20]} Kf7 {[%emt 0:01:03]} 31. Ne2 {[%emt 0:00:46]} Rg8+ {[%emt 0:01:23]} 32. Kf2 {[%emt 0:00:11]} Ng4+ {[%emt 0:02:25]} 33. Bxg4 {[%emt 0:00:02]} Rxg4 $11 {[%emt 0:00:00][%mdl 4096] Endgame KRB-KRN} 34. Rh1 {[%emt 0:01:56]} Rg7 {[%emt 0:00:10]} (34... c5 $11 {keeps the balance.}) 35. Nd4 $16 {[%emt 0:01:18] Threatens to win with Rh5.} a6 {[%emt 0:00:41] Black cannot hold the game after this.} (35... Bd7 $16 {might work better.}) 36. Rh5 $18 {[%emt 0:00:28]} Bc8 {[%emt 0:00:38]} (36... Ke7 {was called for.} 37. Rxf5 (37. Nxf5+ Bxf5 38. Rxf5 Rh7 $18) 37... Bc8 38. Re5+ Kf6 39. Rxe4 Bh3) 37. Nxf5 {[%emt 0:00:56]} Rg6 {[%emt 0:00:29]} (37... Bxf5 $142 38. Rxf5+ Ke8 39. Re5+ Kf8 40. Rxe4 Rh7) 38. c5 {[%emt 0:02:36] [#] Hoping for Nd6+.} Bxf5 {[%emt 0:00:29]} 39. Rxf5+ {[%emt 0:00:02] KR-KR} Ke6 {[%emt 0:00:22]} 40. Re5+ {[%emt 0:00:24]} Kf6 {[%emt 0:00:12]} 41. Rxe4 {[%emt 0:30:27]} Rh6 {[%emt 0:30:01]} 42. a4 {[%emt 0:01:25]} a5 {[%emt 0:00:43]} 43. Ke2 {[%emt 0:01:28]} Rh5 {[%emt 0:00:00]} (43... Rh2+ $142 44. Kd3 Rh1) 44. b4 {[%emt 0:00:00]} axb4 {[%emt 0:00:00]} 45. Rxb4 {[%emt 0:00:00]} Rxc5 {[%emt 0:00:00]} 46. Rxb7 {[%emt 0:00:00]} Ra5 {[%emt 0:00:00]} 47. Rb4 {[%emt 0:00:00] Black must now prevent Rc4.} c5 {[%emt 0:00:00]} 48. Rc4 {[%emt 0:00:00]} Ke6 {[%emt 0:00:00]} 49. e4 {[%emt 0:00:00]} Kd6 {[%emt 0:00:00]} 50. Kf3 {[%emt 0:00:00]} Ra6 {[%emt 0:00:00]} 51. f5 {[%emt 0:00:00]} Rb6 {[%emt 0:00:00]} 52. Kf4 {[%emt 0:00:00]} Rb1 {[%emt 0:00:00]} 53. Rc3 {[%emt 0:00:00]} Ra1 {[%emt 0:00:00]} 54. Rd3+ {[%emt 0:00:00]} Ke7 {[%emt 0:00:00]} 55. Rd5 {[%emt 0:00:00]} c4 {[%emt 0:00:00]} 56. a5 {[%emt 0:00:00]} c3 {[%emt 0:00:00]} 57. Rc5 {[%emt 0:00:00]} Ra3 {[%emt 0:00:00]} 58. Ke5 {[%emt 0:00:00]} c2 {[%emt 0:00:00]} 59. Rc7+ {[%emt 0:00:00]} Kd8 {[%emt 0:00:00]} 60. Rxc2 {[%emt 0:00:00]} Rxa5+ {[%emt 0:00:00]} 61. Kd6 {[%emt 0:00:00] Weighted Error Value: White=0.04 (flawless) /Black=0.29 (precise)} 1-0

[Event "Bangabandhu Premier Div League 2022"]
[Site "Dhaka"]
[Date "2022.11.30"]
[Round "1.8"]
[White "Jamal Uddin"]
[Black "Swarnavo Choudhury"]
[Result "0-1"]
[ECO "D70"]
[WhiteElo "2092"]
[BlackElo "1977"]
[Annotator "TA"]
[PlyCount "94"]
[EventDate "2022.11.30"]
[EventType "team-tourn"]
[EventCountry "BAN"]
[SourceTitle "playchess.com"]
[Source "ChessBase"]
[SourceQuality "1"]
[TimeControl "40/5400+30:1800+30"]

{[%evp 14,94,36,30,75,60,85,26,37,0,20,27,50,72,70,32,35,32,55,60,134,57,104,57,55,24,25,0,0,0,21,-103,-107,-218,-222,-228,-179,-179,-189,-197,-194,-191,-190,-175,-171,-212,-212,-206,-183,-186,0,-113,-90,-166,-108,-219,-130,-356,-347,-529,-514,-477,-498,-429,-222,-295,-289,-279,-250,-5443,-5322,-29984,-29985,-29984,-12565,-29982,-29983,-29991,-29985,-29990,-29983,-29997,-29998]} 1. d4 {[%emt 0:00:48]} Nf6 {[%emt 0:00:08]} 2. c4 {[%emt 0:00:29]} g6 {[%emt 0:02:29]} 3. f3 {[%emt 0:01:06]} d5 {[%emt 0:02:12]} 4. cxd5 {[%emt 0:00:32]} Nxd5 {[%emt 0:10:07]} 5. e4 {[%emt 0:00:47]} Nb6 {[%emt 0:01:19]} 6. Nc3 {[%emt 0:00:54]} Bg7 {[%emt 0:04:42]} 7. Be3 {[%emt 0:00:55]} O-O {[%emt 0:00:11]} 8. Qd2 {[%emt 0:02:07]} a5 {[%emt 0:09:07] D70: Grünfeld: Unusual White 3rd moves (met by ...d5).} 9. O-O-O {[%emt 0:03:10]} Nc6 {[%emt 0:07:36]} 10. d5 {[%emt 0:03:38] Inhibits a4.} (10. Kb1 $16) 10... Ne5 $11 {[%emt 0:00:45] White has an edge.} 11. Bd4 {[%emt 0:00:46] [#]} (11. Bxb6 {simplifies} cxb6 12. Kb1 a4 13. a3) 11... c6 $146 {[%emt 0:11:20]} ({Predecessor:} 11... e6 12. f4 Nec4 13. Bxc4 Nxc4 14. Qd3 e5 15. Bc5 Nd6 16. fxe5 Bxe5 17. Nf3 Re8 18. Nxe5 {1-0 (38) Bernasek,J (2459)-Plat,V (2216) Czech Republic 2007}) 12. Qf2 {[%emt 0:00:46]} Ned7 {[%emt 0:04:05]} 13. Bxg7 {[%emt 0:01:44]} Kxg7 {[%emt 0:00:09]} 14. Qd4+ {[%emt 0:03:18]} f6 {[%emt 0:04:49]} 15. h4 {[%emt 0:01:06][%cal Bh2h4,Bh4h5,Bh5h6][%mdl 32]} (15. Nge2 {simplifies} cxd5 16. exd5 Ne5 17. Kb1) 15... Qc7 {[%emt 0:08:15]} 16. h5 {[%emt 0:02:12]} a4 {[%emt 0:19:26]} (16... g5 $14) 17. Kb1 {[%emt 0:02:56]} (17. hxg6 $16 hxg6 18. Qe3) 17... a3 {[%emt 0:02:47]} (17... g5 $1 $14 {deserves consideration.}) 18. b3 {[%emt 0:00:55]} ({White should play} 18. hxg6 $16 hxg6 19. b3) 18... g5 {[%emt 0:04:34]} 19. h6+ {[%emt 0:04:43]} (19. Ka1 {is interesting.} cxd5 20. exd5 Qc5 21. h6+) 19... Kh8 {[%emt 0:00:29]} 20. Nh3 {[%emt 0:02:08]} cxd5 {[%emt 0:02:40]} 21. exd5 {[%emt 0:01:11]} Ne5 {[%emt 0:01:03] [#] White must now prevent ...Bf5+.} 22. Nb5 {[%emt 0:00:44]} (22. Nxg5 $1 $11 Bf5+ 23. Nge4) 22... Bf5+ $17 {[%emt 0:02:05]} 23. Bd3 {[%emt 0:00:26]} Bxd3+ $19 {[%emt 0:01:01]} 24. Qxd3 {[%emt 0:02:42]} Qd7 {[%emt 0:00:36]} 25. Qe2 {[%emt 0:00:55]} Nxd5 {[%emt 0:00:28]} (25... Ra5 26. d6 $11) 26. Rxd5 {[%emt 0:03:37]} ({Not} 26. Nxg5 $2 Qxb5 $3 {[%mdl 512]} 27. Qxb5 (27. Nf7+ $2 Rxf7 28. Qxb5 Nc3+ 29. Ka1 Nxb5 $19) 27... Nc3+ 28. Ka1 Nxb5 $19) 26... Qxd5 {[%emt 0:00:08]} 27. Nc7 {[%emt 0:00:22]} Qa5 {[%emt 0:00:21]} 28. Nxa8 {[%emt 0:00:21]} Rxa8 {[%emt 0:00:06]} 29. Rc1 {[%emt 0:06:48]} Rd8 {[%emt 0:00:34]} 30. Nf2 {[%emt 0:01:08]} Qb4 {[%emt 0:01:02]} 31. Ne4 {[%emt 0:01:36]} Qa5 $2 {[%emt 0:00:51]} (31... Qd4 $19 {Strongly threatening ...Nd3.} 32. Nf2 Kg8) 32. Rc5 {[%emt 0:05:44]} (32. Nf2 $1 $11 {was the only way to keep the balance.}) 32... Qb6 {[%emt 0:00:21] ...Nd3 is the strong threat.} 33. Qe3 {[%emt 0:13:53] [#]} (33. Qb5 $17 {is a better defense.} Qa7 34. Qa4 Qxa4 35. bxa4) 33... Nf7 {[%emt 0:00:43]} ({Weaker is} 33... Rd1+ 34. Kc2 Rd8 35. Nxg5 $11) (33... Qa6 $1 $19 34. Rc1 Qe6) 34. Qc3 {[%emt 0:02:13]} (34. Nc3 $17) 34... Qe6 {[%emt 0:00:30]} (34... Nxh6 $19 {Threatens to win with ...Rd1+.} 35. Qa5 Qxa5 36. Rxa5 f5 37. Nxg5 Rd1+ 38. Kc2 Rg1) 35. g4 $2 {[%emt 0:04:59] White does not recover from this.} (35. Qc4 $17 Qxc4 36. bxc4) 35... Nxh6 {[%emt 0:00:26]} 36. Rxg5 {[%emt 0:01:02]} (36. Qe1 {keeps fighting.}) 36... Qa6 {[%emt 0:00:25] ( -> ...Qf1+)} 37. Ng3 {[%emt 0:05:59] Against Qf1+} Qd6 {[%emt 0:00:34]} 38. Ne2 {[%emt 0:06:38]} Qe6 {[%emt 0:00:31]} (38... Qd2 $142 {[%cal Od2e2]} 39. Qxd2 Rxd2) 39. Nc1 {[%emt 0:00:37]} b6 {[%emt 0:00:34] Inhibits Rc5.} 40. Rh5 {[%emt 0:00:35]} Rc8 $40 {[%emt 0:00:26][%mdl 128] Black wants a kill.} 41. Qd3 {[%emt 0:30:33]} (41. Qd2 Nf7 42. Qd3) 41... Qe1 $1 {[%emt 0:01:17][%csl Ge1][%cal Rc8c1]} 42. Qc4 {[%emt 0:00:00]} Rxc4 {[%emt 0:00:18]} 43. bxc4 {[%emt 0:00:00] [#]} Nf7 {[%emt 0:00:25]} (43... Nxg4 $142 $1 44. Kc2 (44. fxg4 Qe4+) 44... Ne3+ 45. Kd3 Qxc1 46. Ke2 Nxc4 47. Kd3 Ne5+ 48. Rxe5 fxe5 49. Ke4 Qc4+ 50. Kxe5 Qxa2 51. f4 Qe2+ 52. Kd5 a2 53. Kc6 a1=Q 54. Kd7 Qa7+ 55. Ke8 Qe6 56. Kf8 Qg8#) 44. Rb5 {[%emt 0:00:00]} Nd6 {[%emt 0:00:11][%csl LRb5,LRc4] Black mates.} 45. Rxb6 {[%emt 0:00:00]} Nxc4 {[%emt 0:00:06]} 46. Rb8+ {[%emt 0:00:00]} Kg7 {[%emt 0:00:02]} 47. Rb5 {[%emt 0:00:00]} Qc3 {[%emt 0:00:21] Weighted Error Value: White=0.79/Black=0.42} 0-1

[Event "Bangabandhu Premier Div League 2022"]
[Site "Dhaka"]
[Date "2022.11.30"]
[Round "1.9"]
[White "Masum, Hossain"]
[Black "Anata, Choudhury"]
[Result "1-0"]
[ECO "A30"]
[WhiteElo "2103"]
[BlackElo "2176"]
[Annotator "TA"]
[PlyCount "179"]
[EventDate "2022.11.30"]
[EventType "team-tourn"]
[EventCountry "BAN"]
[SourceTitle "playchess.com"]
[Source "ChessBase"]
[SourceQuality "1"]
[TimeControl "40/5400+30:1800+30"]

{[%evp 9,179,6,12,25,23,21,51,41,61,57,58,45,58,17,11,11,29,23,13,14,26,10,12,0,0,0,6,-60,-25,-40,-41,-27,0,0,20,-48,0,0,31,32,73,56,85,83,245,248,271,280,385,445,198,216,350,304,366,373,368,360,287,324,295,258,506,484,437,457,12840,12840,12841,12841,29991,29992,29995,-12835,29995,0,29995,-12835,29995,29994,29995,-12834,29995,0,29995,-8924,29995,0,29995,-12833,29995,0,29995,-12831,29995,0,29995,-12829,29995,0,29995,-4946,29995,0,29995,-8528,29995,0,29995,-2194,29995,0,29995,-9246,29995,0,29995,-8971,29995,0,29995,-6362,29995,0,29995,-2414,29995,0,29995,-4880,29995,0,29995,-2671,29995,0,29995,-2357,29995,0,29995,-1961,29995,0,29995,-1956,29995,0,29995,-1846,29995,0,29995,-1629,29995,0,29995,-1504,29995,0,29995,-1378,29995,0,29995,-1281,29995,0,29994,-1212,29995,0]} 1. Nf3 {[%emt 0:00:02]} c5 {[%emt 0:00:18]} 2. b3 {[%emt 0:00:05]} Nc6 {[%emt 0:00:17]} 3. Bb2 {[%emt 0:00:01]} Nf6 {[%emt 0:00:43]} 4. c4 {[%emt 0:02:29]} e6 {[%emt 0:00:40]} 5. g3 {[%emt 0:01:30]} Be7 {[%emt 0:01:44]} 6. Bg2 {[%emt 0:00:01] A30: Symmetrical English: Double Fianchetto and Hedgehog.} O-O {[%emt 0:00:11]} 7. O-O Qc7 8. Nc3 {[%emt 0:05:04] White is slightly better.} b6 9. e4 {Inhibits d5.} Bb7 {[%emt 0:23:54] [#]} 10. d4 $146 ({Predecessor:} 10. Re1 d6 11. d4 cxd4 12. Nb5 Qd7 13. Nfxd4 a6 14. Nxc6 Qxc6 15. Nd4 Qc5 16. Qe2 {½-½ (32) Wilke,D (2001)-Reichel,H (1553) Oldenburg 1995}) 10... cxd4 11. Nb5 Qb8 {[%emt 0:06:12]} 12. Nfxd4 {[%emt 0:22:58]} Rd8 {[%emt 0:02:27]} (12... a6 $5 {[%cal Ra6b5]}) 13. Qe2 a6 {[%emt 0:27:07]} 14. Nxc6 {[%emt 0:06:10]} dxc6 {[%emt 0:00:24]} 15. Nc3 {[%emt 0:01:50]} (15. Nd4 $5 {[%cal Re4e5]}) 15... e5 16. f4 {[%emt 0:07:37]} Bc5+ {[%emt 0:05:33]} 17. Kh1 {[%emt 0:00:01] With the idea fxe5.} Bd4 {[%emt 0:00:11]} 18. f5 {[%emt 0:51:42]} ({White should try} 18. fxe5 $11 Qxe5 19. Rf5) 18... Qd6 19. g4 {[%emt 0:00:00]} h6 {[%emt 0:09:19]} 20. Rad1 {[%emt 0:00:00]} Qe7 {[%emt 0:01:43]} 21. Rd3 $1 {[%emt 0:00:00]} Nd7 {[%emt 0:03:16]} 22. Rdd1 {[%emt 0:00:00]} (22. Bc1 $11) 22... Nf6 {[%emt 0:00:00]} (22... b5 $15) 23. Rd3 $1 $11 {[%emt 0:00:00]} Nd7 {[%emt 0:02:04]} 24. Bc1 {[%cal Oh2h4]} b5 {[%emt 0:16:27] Against h4} 25. Rg3 {[%emt 0:00:00]} f6 {[%emt 0:00:00] [#] Prevents g5.} 26. h4 $1 {[%emt 0:00:00]} bxc4 $2 {[%emt 0:00:00] [#]} (26... Kf8 $16) 27. g5 $1 $18 {[%emt 0:00:00]} (27. Qxc4+ Qf7 $14) 27... hxg5 {[%emt 0:00:00]} 28. hxg5 {[%emt 0:00:00]} fxg5 {[%emt 0:00:00]} 29. Bxg5 {[%emt 0:00:00]} (29. bxc4 Nf6 $11) 29... Nf6 {[%emt 0:00:00]} (29... Qf7 $142 30. Bxd8 (30. bxc4 Rf8 $18) (30. Qxc4 Qxc4 31. bxc4 Rf8 $14) 30... Rxd8 31. bxc4 (31. Qxc4 Nf6 $16) 31... Nf6) 30. Bh6 {[%emt 0:00:00]} (30. bxc4 Kf7 $11) 30... Rd7 {[%emt 0:00:00]} (30... Rd6 {was called for.} 31. Qxc4+ (31. bxc4 Nxe4 32. Nxe4 Rxh6+ 33. Rh3 Rxh3+ 34. Bxh3 Qh4 $17) (31. Bxg7 Qxg7 32. Qxc4+ Kh8 $18) 31... Kf8) 31. Qxc4+ {[%emt 0:00:00]} (31. bxc4 $2 {perishes.} Bxc3 32. Rff3 Bd4 $19) (31. Rxg7+ Qxg7 32. Bxg7 Kxg7 $17) 31... Kh7 {[%emt 0:00:00]} 32. Rxg7+ {[%emt 0:00:00]} ({Weaker is} 32. Bxg7 Nh5 33. Rh3 Kxg7 $16) 32... Qxg7 {[%emt 0:00:00]} 33. Bxg7 {[%emt 0:00:00] Really sharp!} Kxg7 {[%emt 0:00:00]} 34. Rf3 {[%emt 0:00:00] Black must now prevent Rg3+.} Rh8+ {[%emt 0:00:04]} 35. Bh3 {[%emt 0:00:00] Hoping for Rg3+.} c5 $2 {[%emt 0:02:14]} (35... Rh6 {was worth a try.} 36. Rg3+ Kh7) 36. Rg3+ {[%emt 0:00:00]} Kf8 {[%emt 0:00:09] And now ...Nh5 would win.} 37. Qe6 {[%emt 0:05:57]} Nxe4 {[%emt 0:02:23]} (37... Rh6 $142 38. Rg6 Rxg6 39. fxg6 Kg7) 38. Nxe4 {[%emt 0:00:00]} Bxe4+ {[%emt 0:00:03]} 39. Kh2 {[%emt 0:00:00] Intending Qf6+ and mate.} Bb7 {[%emt 0:01:20]} 40. Qxd7 {[%emt 0:00:00]} Bf2 {[%emt 0:00:00]} 41. Qc8+ $4 {[%emt 0:00:00][%mdl 8192]} Kf7 $4 {[%emt 0:04:57][%mdl 8192]} (41... Bxc8 $19 42. Rf3 Bd4) 42. Qd7+ {[%emt 0:25:33]} Kf8 {[%emt 0:00:00]} 43. Qc8+ $4 {[%emt 0:00:00][%mdl 8192]} Kf7 $4 {[%emt 0:02:23][%mdl 8192]} (43... Bxc8 $19 44. Rf3 Bd4) 44. Qe6+ {[%emt 0:01:00]} Kf8 {[%emt 0:00:00]} 45. Qc8+ $4 {[%emt 0:00:00][%mdl 8192]} Kf7 $4 {[%emt 0:00:00][%mdl 8192]} (45... Bxc8 $19 46. Rg4 Bxf5) 46. Qd7+ {[%emt 0:01:00]} Kf8 {[%emt 0:00:00]} 47. Qc8+ $4 {[%emt 0:00:00][%mdl 8192]} Kf7 $4 {[%emt 0:02:00][%mdl 8192]} (47... Bxc8 $19 48. Rf3 Bd4) 48. Qe6+ {[%emt 0:01:00]} Kf8 {[%emt 0:00:00]} 49. Qc8+ $4 {[%emt 0:00:00][%mdl 8192]} Kf7 $4 {[%emt 0:00:00][%mdl 8192]} (49... Bxc8 $19 50. Rf3 Bd4) 50. Qd7+ {[%emt 0:01:00]} Kf8 {[%emt 0:00:00]} 51. Qc8+ $4 {[%emt 0:00:00][%mdl 8192]} Kf7 $4 {[%emt 0:02:00][%mdl 8192]} (51... Bxc8 $19 52. Rg4 Bxf5) 52. Qe6+ {[%emt 0:01:00]} Kf8 {[%emt 0:00:00]} 53. Qc8+ $4 {[%emt 0:00:00][%mdl 8192]} Kf7 $4 {[%emt 0:00:00][%mdl 8192]} (53... Bxc8 $19 54. Rf3 Bd4) 54. Qd7+ {[%emt 0:01:00]} Kf8 {[%emt 0:00:00]} 55. Qc8+ $4 {[%emt 0:00:00][%mdl 8192]} Kf7 $4 {[%emt 0:02:00][%mdl 8192]} (55... Bxc8 $19 56. Rg4 Bxf5) 56. Qe6+ {[%emt 0:01:00]} Kf8 {[%emt 0:00:00]} 57. Qc8+ $4 {[%emt 0:00:00][%mdl 8192]} Kf7 $4 {[%emt 0:00:00][%mdl 8192]} (57... Bxc8 $19 58. Rg4 Bxf5) 58. Qd7+ {[%emt 0:01:00]} Kf8 {[%emt 0:00:00]} 59. Qc8+ $4 {[%emt 0:00:00][%mdl 8192]} Kf7 $4 {[%emt 0:02:00][%mdl 8192]} (59... Bxc8 $19 60. Rg4 Bxf5) 60. Qe6+ {[%emt 0:01:00]} Kf8 {[%emt 0:00:00]} 61. Qc8+ $4 {[%emt 0:00:00][%mdl 8192]} Kf7 $4 {[%emt 0:00:00][%mdl 8192]} (61... Bxc8 $19 62. Rg4 Bxf5) 62. Qd7+ {[%emt 0:01:00]} Kf8 {[%emt 0:00:00]} 63. Qc8+ $4 {[%emt 0:00:00][%mdl 8192]} Kf7 $4 {[%emt 0:02:00][%mdl 8192]} (63... Bxc8 $19 64. Rg4 Bxf5) 64. Qe6+ {[%emt 0:01:00]} Kf8 {[%emt 0:00:00]} 65. Qc8+ $4 {[%emt 0:00:00][%mdl 8192]} Kf7 $4 {[%emt 0:00:00][%mdl 8192]} (65... Bxc8 $19 66. Rf3 Bd4) 66. Qd7+ {[%emt 0:01:00]} Kf8 {[%emt 0:00:00]} 67. Qc8+ $4 {[%emt 0:00:00][%mdl 8192]} Kf7 $4 {[%emt 0:02:00][%mdl 8192]} (67... Bxc8 $19 68. Rg4 Bxf5) 68. Qe6+ {[%emt 0:01:00]} Kf8 {[%emt 0:00:00]} 69. Qc8+ $4 {[%emt 0:00:00][%mdl 8192]} Kf7 $4 {[%emt 0:00:00][%mdl 8192]} (69... Bxc8 $19 70. Rg4 Bxf5) 70. Qd7+ {[%emt 0:01:00]} Kf8 {[%emt 0:00:00]} 71. Qc8+ $4 {[%emt 0:00:00][%mdl 8192]} Kf7 $4 {[%emt 0:02:00][%mdl 8192]} (71... Bxc8 $19 72. Rg2 Be3) 72. Qe6+ {[%emt 0:01:00]} Kf8 {[%emt 0:00:00]} 73. Qc8+ $4 {[%emt 0:00:00][%mdl 8192]} Kf7 $4 {[%emt 0:00:00][%mdl 8192]} (73... Bxc8 $19 74. Rf3 Bd4) 74. Qd7+ {[%emt 0:01:00]} Kf8 {[%emt 0:00:00]} 75. Qc8+ $4 {[%emt 0:00:00][%mdl 8192]} Kf7 $4 {[%emt 0:02:00][%mdl 8192]} (75... Bxc8 $19 76. Rg4 Bxf5) 76. Qe6+ {[%emt 0:01:00]} Kf8 {[%emt 0:00:00]} 77. Qc8+ $4 {[%emt 0:00:00][%mdl 8192]} Kf7 $4 {[%emt 0:00:00][%mdl 8192]} (77... Bxc8 $19 78. Rg4 Bxf5) 78. Qd7+ {[%emt 0:01:00]} Kf8 {[%emt 0:00:00]} 79. Qc8+ $4 {[%emt 0:00:00][%mdl 8192]} Kf7 $4 {[%emt 0:02:00][%mdl 8192]} (79... Bxc8 $19 80. Rd3 Bd4) 80. Qe6+ {[%emt 0:01:00]} Kf8 {[%emt 0:00:00]} 81. Qc8+ $4 {[%emt 0:00:00][%mdl 8192]} Kf7 $4 {[%emt 0:00:00][%mdl 8192]} (81... Bxc8 $19 82. Rg4 Bxf5) 82. Qd7+ {[%emt 0:01:00]} Kf8 {[%emt 0:00:00]} 83. Qc8+ $4 {[%emt 0:00:00][%mdl 8192]} Kf7 $4 {[%emt 0:02:00][%mdl 8192]} (83... Bxc8 $19 84. Rf3 Bd4) 84. Qe6+ {[%emt 0:01:00]} Kf8 {[%emt 0:00:00]} 85. Qc8+ $4 {[%emt 0:00:00][%mdl 8192]} Kf7 $4 {[%emt 0:00:00][%mdl 8192]} (85... Bxc8 $19 86. Rd3 Bd4) 86. Qd7+ {[%emt 0:01:00]} Kf8 {[%emt 0:00:00]} 87. Qc8+ $4 {[%emt 0:00:00][%mdl 8192]} Kf7 $4 {[%emt 0:02:00][%mdl 8192]} (87... Bxc8 $19 88. Rf3 Bd4) 88. Qe6+ {[%emt 0:01:00]} Kf8 {[%emt 0:00:00]} 89. Qc8+ $4 {[%emt 0:00:00][%mdl 8192]} Kf7 $4 {[%emt 0:00:00][%mdl 8192]} (89... Bxc8 $19 90. Rg4 Bxf5) 90. Qd7+ $2 {[%emt 0:00:00][%mdl 32768] Weighted Error Value: White=0.77/Black=0.95. Loss on time!?} (90. Qxb7+ {mates} Ke8 91. Rg7 Bg3+ 92. Kxg3 Rxh3+ 93. Kxh3 Kf8 94. Qf7#) 1-0